Workbook

Sheet possibilites
A1: nombre de fois où apparait la valeur : | B1: 10 | C1: 25 | D1: 40 | E1: 50 | F1: total
B2: =RANDBETWEEN(0,8) -> 8 | C2: =RANDBETWEEN(0,8-B2) -> 0 | D2: =RANDBETWEEN(0,8-(C2+B2)) -> 0 | E2: =8-(B2+C2+D2) -> 0 | F2: =B2*10+C2*25+D2*40+E2*50 -> 80
B3: 3 | C3: 0 | D3: 0 | E3: 5 | F3: =B3*10+C3*25+D3*40+E3*50 -> 280
B4: 1 | C4: 3 | D4: 4 | E4: 0 | F4: 245
B5: 0 | C5: 7 | D5: 0 | E5: 1 | F5: 225
B6: 2 | C6: 5 | D6: 1 | E6: 0 | F6: 185
B7: 3 | C7: 1 | D7: 1 | E7: 3 | F7: 245
B8: 4 | C8: 0 | D8: 2 | E8: 2 | F8: 220
B9: 8 | C9: 0 | D9: 0 | E9: 0 | F9: 80
B10: 4 | C10: 4 | D10: 0 | E10: 0 | F10: 140
B11: 7 | C11: 1 | D11: 0 | E11: 0 | F11: 95
B12: 3 | C12: 3 | D12: 2 | E12: 0 | F12: 185
B13: 8 | C13: 0 | D13: 0 | E13: 0 | F13: 80
B14: 1 | C14: 3 | D14: 0 | E14: 4 | F14: 285
B15: 8 | C15: 0 | D15: 0 | E15: 0 | F15: 80
B16: 7 | C16: 0 | D16: 1 | E16: 0 | F16: 110
B17: 2 | C17: 6 | D17: 0 | E17: 0 | F17: 170
B18: 6 | C18: 1 | D18: 0 | E18: 1 | F18: 135
B19: 8 | C19: 0 | D19: 0 | E19: 0 | F19: 80
B20: 2 | C20: 5 | D20: 0 | E20: 1 | F20: 195
B21: 7 | C21: 1 | D21: 0 | E21: 0 | F21: 95
B22: 4 | C22: 0 | D22: 3 | E22: 1 | F22: 210
B23: 1 | C23: 1 | D23: 4 | E23: 2 | F23: 295
B24: 2 | C24: 1 | D24: 3 | E24: 2 | F24: 265
B25: 3 | C25: 0 | D25: 0 | E25: 5 | F25: 280
B26: 8 | C26: 0 | D26: 0 | E26: 0 | F26: 80
B27: 7 | C27: 1 | D27: 0 | E27: 0 | F27: 95
B28: 3 | C28: 4 | D28: 1 | E28: 0 | F28: 170
B29: 2 | C29: 1 | D29: 3 | E29: 2 | F29: 265
B30: 1 | C30: 4 | D30: 1 | E30: 2 | F30: 250
B31: 2 | C31: 4 | D31: 2 | E31: 0 | F31: 200
B32: 8 | C32: 0 | D32: 0 | E32: 0 | F32: 80
B33: 4 | C33: 0 | D33: 3 | E33: 1 | F33: 210
B34: 3 | C34: 3 | D34: 0 | E34: 2 | F34: 205
B35: 7 | C35: 0 | D35: 0 | E35: 1 | F35: 120
B36: 4 | C36: 1 | D36: 0 | E36: 3 | F36: 215
B37: 5 | C37: 3 | D37: 0 | E37: 0 | F37: 125
B38: 2 | C38: 5 | D38: 1 | E38: 0 | F38: 185
B39: 1 | C39: 2 | D39: 0 | E39: 5 | F39: 310
B40: 1 | C40: 4 | D40: 1 | E40: 2 | F40: 250
B41: 7 | C41: 1 | D41: 0 | E41: 0 | F41: 95
B42: 1 | C42: 7 | D42: 0 | E42: 0 | F42: 185
B43: 7 | C43: 1 | D43: 0 | E43: 0 | F43: 95
B44: 7 | C44: 0 | D44: 0 | E44: 1 | F44: 120
B45: 8 | C45: 0 | D45: 0 | E45: 0 | F45: 80
B46: 1 | C46: 6 | D46: 1 | E46: 0 | F46: 200
B47: 7 | C47: 1 | D47: 0 | E47: 0 | F47: 95
B48: 4 | C48: 0 | D48: 1 | E48: 3 | F48: 230
B49: 0 | C49: 4 | D49: 3 | E49: 1 | F49: 270
B50: 5 | C50: 2 | D50: 1 | E50: 0 | F50: 140
B51: 3 | C51: 2 | D51: 2 | E51: 1 | F51: 210
B52: 7 | C52: 0 | D52: 1 | E52: 0 | F52: 110
B53: 6 | C53: 1 | D53: 1 | E53: 0 | F53: 125
B54: 1 | C54: 5 | D54: 0 | E54: 2 | F54: 235
B55: 3 | C55: 3 | D55: 0 | E55: 2 | F55: 205
B56: 3 | C56: 4 | D56: 1 | E56: 0 | F56: 170
B57: 8 | C57: 0 | D57: 0 | E57: 0 | F57: 80
B58: 3 | C58: 2 | D58: 1 | E58: 2 | F58: 220
B59: 8 | C59: 0 | D59: 0 | E59: 0 | F59: 80
B60: 2 | C60: 2 | D60: 0 | E60: 4 | F60: 270
B61: 2 | C61: 4 | D61: 1 | E61: 1 | F61: 210
B62: 5 | C62: 1 | D62: 2 | E62: 0 | F62: 155
B63: 0 | C63: 6 | D63: 0 | E63: 2 | F63: 250
B64: 8 | C64: 0 | D64: 0 | E64: 0 | F64: 80
B65: 6 | C65: 2 | D65: 0 | E65: 0 | F65: 110
B66: =RANDBETWEEN(0,8) -> 5 | C66: =RANDBETWEEN(0,8-B66) -> 1 | D66: =RANDBETWEEN(0,8-(C66+B66)) -> 2 | E66: =8-(B66+C66+D66) -> 0 | F66: 155
B67: 1 | C67: 5 | D67: 1 | E67: 1 | F67: =B67*10+C67*25+D67*40+E67*50 -> 225
B68: 3 | C68: 5 | D68: 0 | E68: 0 | F68: 155
B69: 1 | C69: 4 | D69: 3 | E69: 0 | F69: 230
B70: 5 | C70: 2 | D70: 1 | E70: 0 | F70: 140
B71: 2 | C71: 3 | D71: 0 | E71: 3 | F71: 245
B72: 5 | C72: 2 | D72: 0 | E72: 1 | F72: 150
B73: 6 | C73: 2 | D73: 0 | E73: 0 | F73: 110
B74: 4 | C74: 4 | D74: 0 | E74: 0 | F74: 140
B75: 0 | C75: 5 | D75: 3 | E75: 0 | F75: 245
B76: 2 | C76: 6 | D76: 0 | E76: 0 | F76: 170
B77: 7 | C77: 1 | D77: 0 | E77: 0 | F77: 95
B78: 2 | C78: 1 | D78: 5 | E78: 0 | F78: 245
B79: 7 | C79: 0 | D79: 1 | E79: 0 | F79: 110
B80: 8 | C80: 0 | D80: 0 | E80: 0 | F80: 80
B81: 0 | C81: 6 | D81: 1 | E81: 1 | F81: 240
B82: 8 | C82: 0 | D82: 0 | E82: 0 | F82: 80
B83: 6 | C83: 2 | D83: 0 | E83: 0 | F83: 110
B84: 4 | C84: 0 | D84: 1 | E84: 3 | F84: 230
B85: 4 | C85: 2 | D85: 1 | E85: 1 | F85: 180
B86: 6 | C86: 2 | D86: 0 | E86: 0 | F86: 110
B87: 4 | C87: 1 | D87: 1 | E87: 2 | F87: 205
B88: 2 | C88: 0 | D88: 1 | E88: 5 | F88: 310
B89: 5 | C89: 0 | D89: 1 | E89: 2 | F89: 190
B90: 7 | C90: 0 | D90: 1 | E90: 0 | F90: 110
B91: 7 | C91: 1 | D91: 0 | E91: 0 | F91: 95
B92: 7 | C92: 0 | D92: 1 | E92: 0 | F92: 110
B93: 1 | C93: 0 | D93: 6 | E93: 1 | F93: 300
B94: 7 | C94: 1 | D94: 0 | E94: 0 | F94: 95
B95: 3 | C95: 4 | D95: 0 | E95: 1 | F95: 180
B96: 5 | C96: 2 | D96: 1 | E96: 0 | F96: 140
B97: 2 | C97: 5 | D97: 1 | E97: 0 | F97: 185
B98: 5 | C98: 1 | D98: 0 | E98: 2 | F98: 175
B99: 6 | C99: 1 | D99: 1 | E99: 0 | F99: 125
B100: 6 | C100: 2 | D100: 0 | E100: 0 | F100: 110
B101: 5 | C101: 0 | D101: 0 | E101: 3 | F101: 200
B102: 3 | C102: 1 | D102: 2 | E102: 2 | F102: 235
B103: 1 | C103: 6 | D103: 1 | E103: 0 | F103: 200
B104: 6 | C104: 1 | D104: 1 | E104: 0 | F104: 125
B105: 7 | C105: 1 | D105: 0 | E105: 0 | F105: 95
B106: 7 | C106: 1 | D106: 0 | E106: 0 | F106: 95
B107: 5 | C107: 3 | D107: 0 | E107: 0 | F107: 125
B108: 4 | C108: 4 | D108: 0 | E108: 0 | F108: 140
B109: 0 | C109: 3 | D109: 2 | E109: 3 | F109: 305
B110: 4 | C110: 3 | D110: 0 | E110: 1 | F110: 165
B111: 3 | C111: 2 | D111: 1 | E111: 2 | F111: 220
B112: 1 | C112: 3 | D112: 1 | E112: 3 | F112: 275
B113: 8 | C113: 0 | D113: 0 | E113: 0 | F113: 80
B114: 4 | C114: 0 | D114: 3 | E114: 1 | F114: 210
B115: 5 | C115: 2 | D115: 0 | F115: 100
B116: 6 | C116: 2 | D116: 0 | E116: 0 | F116: 110
B117: 3 | C117: 3 | D117: 0 | E117: 2 | F117: 205
B118: 3 | C118: 1 | D118: 4 | E118: 0 | F118: 215
B119: 8 | C119: 0 | D119: 0 | E119: 0 | F119: 80
B120: 1 | C120: 5 | D120: 0 | E120: 2 | F120: 235
B121: 5 | C121: 3 | D121: 0 | E121: 0 | F121: 125
B122: 4 | C122: 4 | D122: 0 | E122: 0 | F122: 140
B123: 1 | C123: 7 | D123: 0 | E123: 0 | F123: 185
B124: 5 | C124: 0 | D124: 3 | E124: 0 | F124: 170
B125: 0 | C125: 5 | D125: 0 | E125: 3 | F125: 275
B126: 2 | C126: 6 | D126: 0 | E126: 0 | F126: 170
B127: 7 | C127: 0 | D127: 1 | E127: 0 | F127: 110
B128: 3 | C128: 4 | D128: 1 | E128: 0 | F128: 170
B129: 3 | C129: 3 | D129: 2 | E129: 0 | F129: 185
B130: =RANDBETWEEN(0,8) -> 1 | C130: =RANDBETWEEN(0,8-B130) -> 2 | D130: =RANDBETWEEN(0,8-(C130+B130)) -> 5 | E130: =8-(B130+C130+D130) -> 0 | F130: 260
B131: 2 | C131: 0 | D131: 5 | E131: 1 | F131: =B131*10+C131*25+D131*40+E131*50 -> 270
B132: 3 | C132: 5 | D132: 0 | E132: 0 | F132: 155
B133: 2 | C133: 6 | D133: 0 | E133: 0 | F133: 170
B134: 4 | C134: 4 | D134: 0 | E134: 0 | F134: 140
B135: 2 | C135: 5 | D135: 0 | E135: 1 | F135: 195
B136: 7 | C136: 0 | D136: 1 | E136: 0 | F136: 110
B137: 3 | C137: 5 | D137: 0 | E137: 0 | F137: 155
B138: 7 | C138: 1 | D138: 0 | E138: 0 | F138: 95
B139: 6 | C139: 0 | D139: 0 | E139: 2 | F139: 160
B140: 7 | C140: 1 | D140: 0 | E140: 0 | F140: 95
B141: 3 | C141: 0 | D141: 1 | E141: 4 | F141: 270
B142: 4 | C142: 0 | D142: 0 | E142: 4 | F142: 240
B143: 6 | C143: 0 | D143: 2 | E143: 0 | F143: 140
B144: 8 | C144: 0 | D144: 0 | E144: 0 | F144: 80
B145: 4 | C145: 0 | D145: 0 | E145: 4 | F145: 240
B146: 7 | C146: 0 | D146: 1 | E146: 0 | F146: 110
B147: 3 | C147: 5 | D147: 0 | E147: 0 | F147: 155
B148: 7 | C148: 0 | D148: 1 | E148: 0 | F148: 110
B149: 6 | C149: 2 | D149: 0 | E149: 0 | F149: 110
B150: 3 | C150: 1 | D150: 2 | E150: 2 | F150: 235
B151: 3 | C151: 2 | D151: 3 | E151: 0 | F151: 200
B152: 7 | C152: 0 | D152: 1 | E152: 0 | F152: 110
B153: 8 | C153: 0 | D153: 0 | E153: 0 | F153: 80
B154: 3 | C154: 5 | D154: 0 | E154: 0 | F154: 155
B155: 0 | C155: 7 | D155: 1 | E155: 0 | F155: 215
B156: 7 | C156: 1 | D156: 0 | E156: 0 | F156: 95
B157: 8 | C157: 0 | D157: 0 | E157: 0 | F157: 80
B158: 0 | C158: 5 | D158: 1 | E158: 2 | F158: 265
B159: 0 | C159: 6 | D159: 2 | E159: 0 | F159: 230
B160: 2 | C160: 3 | D160: 1 | E160: 2 | F160: 235
B161: 1 | C161: 2 | D161: 3 | E161: 2 | F161: 280
B162: 3 | C162: 1 | D162: 3 | E162: 1 | F162: 225
B163: 0 | C163: 1 | D163: 6 | E163: 1 | F163: 315
B164: 8 | C164: 0 | D164: 0 | E164: 0 | F164: 80
B165: 4 | C165: 2 | D165: 0 | E165: 2 | F165: 190
B166: 3 | C166: 4 | D166: 1 | E166: 0 | F166: 170
B167: 0 | C167: 0 | D167: 8 | E167: 0 | F167: 320
B168: 7 | C168: 1 | D168: 0 | E168: 0 | F168: 95
B169: 0 | C169: 3 | D169: 0 | E169: 5 | F169: 325
B170: 2 | C170: 4 | D170: 1 | E170: 1 | F170: 210
B171: 0 | C171: 6 | D171: 2 | E171: 0 | F171: 230
B172: 3 | C172: 4 | D172: 0 | E172: 1 | F172: 180
B173: 3 | C173: 5 | D173: 0 | E173: 0 | F173: 155
B174: 3 | C174: 3 | D174: 1 | E174: 1 | F174: 195
B175: 3 | C175: 1 | D175: 4 | E175: 0 | F175: 215
B176: 5 | C176: 2 | D176: 1 | E176: 0 | F176: 140
B177: 6 | C177: 0 | D177: 1 | E177: 1 | F177: 150
B178: 6 | C178: 2 | D178: 0 | E178: 0 | F178: 110
B179: 2 | C179: 2 | D179: 2 | E179: 2 | F179: 250
B180: 5 | C180: 2 | D180: 1 | E180: 0 | F180: 140
B181: 8 | C181: 0 | D181: 0 | E181: 0 | F181: 80
B182: 3 | C182: 0 | D182: 3 | E182: 2 | F182: 250
B183: 4 | C183: 0 | D183: 0 | E183: 4 | F183: 240
B184: 7 | C184: 1 | D184: 0 | E184: 0 | F184: 95
B185: 5 | C185: 3 | D185: 0 | E185: 0 | F185: 125
B186: 8 | C186: 0 | D186: 0 | E186: 0 | F186: 80
B187: 5 | C187: 3 | D187: 0 | E187: 0 | F187: 125
B188: 5 | C188: 3 | D188: 0 | E188: 0 | F188: 125
B189: 2 | C189: 6 | D189: 0 | E189: 0 | F189: 170
B190: 4 | C190: 0 | D190: 4 | E190: 0 | F190: 200
B191: 3 | C191: 3 | D191: 0 | E191: 2 | F191: 205
B192: 7 | C192: 0 | D192: 1 | E192: 0 | F192: 110
B193: 3 | C193: 4 | D193: 0 | E193: 1 | F193: 180
B194: =RANDBETWEEN(0,8) -> 5 | C194: =RANDBETWEEN(0,8-B194) -> 1 | D194: =RANDBETWEEN(0,8-(C194+B194)) -> 1 | E194: =8-(B194+C194+D194) -> 1 | F194: 165
B195: 3 | C195: 4 | D195: 1 | E195: 0 | F195: =B195*10+C195*25+D195*40+E195*50 -> 170
B196: 6 | C196: 0 | D196: 1 | E196: 1 | F196: 150
B197: 5 | C197: 1 | D197: 0 | E197: 2 | F197: 175
B198: 7 | C198: 0 | D198: 0 | E198: 1 | F198: 120
B199: 4 | C199: 0 | D199: 2 | E199: 2 | F199: 220
B200: 0 | C200: 0 | D200: 0 | E200: 8 | F200: 400
... 4300 more rows

Sheet simulation
G1: Moyenne annuelle sur 20 | H1: Résultat sur 400
G4: 20 | H4: =MROUND(G4*20,5) -> 400
G6: ,
